[Event "Botvinnik Cup 2018"]
[Site "Moscow"]
[Date "2018.08.12"]
[Round "5"]
[White "Batyrowa, Merjen"]
[Black "Paichadze, Luka"]
[Result "0-1"]
[ECO "E10"]
[WhiteElo "1555"]
[BlackElo "2564"]
[Annotator "ChessBase"]
[PlyCount "70"]
[EventDate "2018.08.10"]
[EventCountry "RUS"]
[SourceTitle "playchess.com"]
[Source "ChessBase"]
[SourceQuality "1"]
[TimeControl "5400+30"]

1. d4 {[%emt 0:00:00]} Nf6 {[%emt 0:00:00]} 2. c4 {[%emt 0:00:16]} e6 {[%emt 0:00:00]} 3. Nf3 {[%emt 0:00:17]} Nc6 {[%emt 0:00:12]} 4. a3 {[%emt 0:00:14]} d5 {[%emt 0:00:08]} 5. e3 {[%emt 0:00:14]} g6 {[%emt 0:00:12]} 6. Bd3 {[%emt 0:00:39]} Bg7 {[%emt 0:00:02]} 7. Nc3 {[%emt 0:00:20]} O-O {[%emt 0:00:05]} 8. O-O {[%emt 0:00:13]} b6 {[%emt 0:00:31]} 9. cxd5 {[%emt 0:01:10]} exd5 {[%emt 0:00:10]} 10. Bd2 {[%emt 0:02:59]} Ne7 {[%emt 0:04:16]} 11. Rc1 {[%emt 0:01:18]} Bb7 {[%emt 0:00:35]} 12. Qc2 {[%emt 0:10:53]} c5 {[%emt 0:02:16]} 13. b3 {[%emt 0:08:20]} Rc8 {[%emt 0:00:33]} 14. Qa2 {[%emt 0:01:32]} Ne4 {[%emt 0:00:40]} 15. Ne2 {[%emt 0:08:43]} Nf5 {[%emt 0:04:55]} 16. Rfd1 {[%emt 0:03:37]} Re8 {[%emt 0:00:38]} 17. a4 {[%emt 0:17:29]} Qe7 {[%emt 0:03:43]} 18. Be1 {[%emt 0:17:05]} Ned6 {[%emt 0:02:03]} 19. Bxf5 {[%emt 0:09:15]} Nxf5 {[%emt 0:07:17]} 20. Ng3 {[%emt 0:01:39]} Nd6 {[%emt 0:07:37]} 21. dxc5 {[%emt 0:06:22]} bxc5 {[%emt 0:00:04]} 22. Bc3 {[%emt 0:00:41]} d4 {[%emt 0:02:00]} 23. exd4 {[%emt 0:03:00]} Bxf3 {[%emt 0:00:34]} 24. gxf3 {[%emt 0:00:04]} cxd4 {[%emt 0:00:01]} 25. Bb4 {[%emt 0:01:43]} Qe6 {[%emt 0:02:46]} 26. Qd2 {[%emt 0:03:10]} Nf5 {[%emt 0:00:55]} 27. Qd3 {[%emt 0:00:44]} Nh4 {[%emt 0:04:19]} 28. Kh1 {[%emt 0:01:25]} Rb8 {[%emt 0:00:12]} 29. Re1 {[%emt 0:00:36]} Qd5 {[%emt 0:00:54]} 30. Re4 {[%emt 0:00:31]} Bf6 {[%emt 0:01:16]} 31. Rxe8+ {[%emt 0:00:29]} Rxe8 {[%emt 0:00:14]} 32. Ne4 {[%emt 0:00:29]} Bg7 {[%emt 0:00:29]} 33. Nd2 {[%emt 0:00:30]} Bh6 {[%emt 0:00:35]} 34. Rc5 {[%emt 0:00:31]} Re1+ {[%emt 0:00:27]} 35. Nf1 {[%emt 0:00:01]} Qxf3+ {[%emt 0:00:03]} 0-1

[Event "Botvinnik Cup 2018"]
[Site "Moscow"]
[Date "2018.08.12"]
[Round "5"]
[White "Sezdbekova, Aizhan"]
[Black "Khusnutdinov, Rustam"]
[Result "0-1"]
[ECO "B24"]
[WhiteElo "1410"]
[BlackElo "2470"]
[Annotator "ChessBase"]
[PlyCount "116"]
[EventDate "2018.08.10"]
[EventCountry "RUS"]
[SourceTitle "playchess.com"]
[Source "ChessBase"]
[SourceQuality "1"]
[TimeControl "5400+30"]

1. e4 {[%emt 0:00:00]} c5 {[%emt 0:00:00]} 2. Nc3 {[%emt 0:00:20]} Nc6 {[%emt 0:00:00]} 3. g3 {[%emt 0:00:25]} g6 {[%emt 0:00:00]} 4. Bg2 {[%emt 0:00:40]} Bg7 {[%emt 0:00:00]} 5. Nge2 {[%emt 0:00:48]} e6 {[%emt 0:00:32]} 6. d3 {[%emt 0:00:38]} Nge7 {[%emt 0:00:03]} 7. Bg5 {[%emt 0:02:06]} h6 {[%emt 0:00:21]} 8. Be3 {[%emt 0:01:05]} Nd4 {[%emt 0:00:37]} 9. Rb1 {[%emt 0:05:13]} O-O {[%emt 0:00:27]} 10. O-O {[%emt 0:03:37]} d6 {[%emt 0:00:20]} 11. Qd2 {[%emt 0:06:07]} Kh7 {[%emt 0:00:05]} 12. h3 {[%emt 0:12:23]} Rb8 {[%emt 0:00:14]} 13. a3 {[%emt 0:02:31]} b6 {[%emt 0:00:54]} 14. f4 {[%emt 0:18:11]} Bb7 {[%emt 0:00:12]} 15. g4 {[%emt 0:04:26]} f5 {[%emt 0:00:53]} 16. g5 {[%emt 0:10:18]} hxg5 {[%emt 0:02:07]} 17. fxg5 {[%emt 0:00:50]} Qd7 {[%emt 0:00:52]} 18. Ng3 {[%emt 0:08:54]} Rf7 {[%emt 0:02:35]} 19. h4 {[%emt 0:04:24]} Rbf8 {[%emt 0:08:24]} 20. h5 {[%emt 0:01:14]} d5 {[%emt 0:12:03]} 21. hxg6+ {[%emt 0:05:51]} Nxg6 {[%emt 0:00:04]} 22. exf5 {[%emt 0:01:28]} Nxf5 {[%emt 0:00:24]} 23. Nxf5 {[%emt 0:00:31]} exf5 {[%emt 0:00:39]} 24. d4 {[%emt 0:00:53]} f4 {[%emt 0:00:12]} 25. Qd1 {[%emt 0:01:35]} f3 {[%emt 0:03:53]} 26. Bxf3 {[%emt 0:04:29]} Qh3 {[%emt 0:04:39]} 27. Rf2 {[%emt 0:02:32]} Rxf3 {[%emt 0:00:06]} 28. Rh2 {[%emt 0:00:49]} Rxe3 {[%emt 0:00:04]} 29. Rxh3+ {[%emt 0:00:40]} Rxh3 {[%emt 0:00:02]} 30. Qg4 {[%emt 0:00:45]} Bxd4+ {[%emt 0:00:30]} 31. Kg2 {[%emt 0:00:23]} Nf4+ {[%emt 0:00:10]} 32. Qxf4 {[%emt 0:01:04]} Rxf4 {[%emt 0:00:09]} 33. Kxh3 {[%emt 0:00:07]} Kg6 {[%emt 0:00:21]} 34. Ne2 {[%emt 0:00:37]} Bc8+ {[%emt 0:00:32]} 35. Kg3 {[%emt 0:00:26]} Rg4+ {[%emt 0:00:13]} 36. Kf3 {[%emt 0:00:23]} Be5 {[%emt 0:00:23]} 37. Nc3 {[%emt 0:01:01]} Bxc3 {[%emt 0:00:14]} 38. bxc3 {[%emt 0:00:11]} Rc4 {[%emt 0:00:15]} 39. Rb3 {[%emt 0:00:46]} Bf5 {[%emt 0:00:09]} 40. Rb2 {[%emt 0:00:45]} Kxg5 {[%emt 0:00:07]} 41. Ke2 {[%emt 0:00:29]} Rxc3 {[%emt 0:00:02]} 42. a4 {[%emt 0:00:11]} Rxc2+ {[%emt 0:01:10]} 43. Rxc2 {[%emt 0:00:06]} Bxc2 {[%emt 0:00:02]} 44. Kd2 {[%emt 0:00:21]} Bxa4 {[%emt 0:00:06]} 45. Kc3 {[%emt 0:00:08]} Kf4 {[%emt 0:04:12]} 46. Kd3 {[%emt 0:00:08]} Bb5+ {[%emt 0:01:24]} 47. Kc3 {[%emt 0:00:08]} Ke3 {[%emt 0:00:03]} 48. Kc2 {[%emt 0:00:08]} d4 {[%emt 0:00:09]} 49. Kd1 {[%emt 0:00:05]} d3 {[%emt 0:00:02]} 50. Kc1 {[%emt 0:00:07]} d2+ {[%emt 0:00:01]} 51. Kb2 {[%emt 0:00:06]} d1=Q {[%emt 0:00:03]} 52. Kc3 {[%emt 0:00:03]} Qd4+ {[%emt 0:00:02]} 53. Kc2 {[%emt 0:00:03]} Ba4+ {[%emt 0:00:02]} 54. Kc1 {[%emt 0:00:03]} Qc3+ {[%emt 0:00:03]} 55. Kb1 {[%emt 0:00:03]} Bc2+ {[%emt 0:00:01]} 56. Kc1 {[%emt 0:00:02]} Bb3+ {[%emt 0:00:01]} 57. Kb1 {[%emt 0:00:02]} Qc2+ {[%emt 0:00:01]} 58. Ka1 {[%emt 0:00:03]} Qc1# {[%emt 0:00:00]} 0-1

[Event "Botvinnik Cup 2018"]
[Site "Moscow"]
[Date "2018.08.14"]
[Round "7"]
[White "Sevdimaliyev, Urfan"]
[Black "Mailebayev, Sanzhar"]
[Result "0-1"]
[ECO "D03"]
[WhiteElo "2388"]
[BlackElo "1820"]
[Annotator "NA"]
[PlyCount "130"]
[EventDate "2018.08.10"]
[EventCountry "RUS"]
[SourceTitle "playchess.com"]
[Source "ChessBase"]
[SourceQuality "1"]
[TimeControl "5400+30"]

1. d4 {[%emt 0:00:00]} d5 {[%emt 0:00:00]} 2. Nf3 {[%emt 0:00:00]} Nf6 {[%emt 0:00:00]} 3. Bg5 {[%emt 0:00:26]} Ne4 {[%emt 0:02:02]} 4. Bh4 {[%emt 0:00:06]} Qd6 {[%emt 0:03:04]} 5. Nbd2 {[%emt 0:00:39]} Qh6 {[%emt 0:05:47] D03: 1 d4 d5 2 Nf3 Nf6 3 Bg5, including Torre Attack with early ...d5} 6. Qc1 {[%emt 0:00:52]} Nc6 {[%emt 0:09:42]} 7. c3 {[%emt 0:02:05]} Qh5 {[%emt 0:25:47]} 8. Nxe4 {[%emt 0:14:23]} dxe4 {[%emt 0:00:33]} 9. Qg5 {[%emt 0:00:24]} Qxg5 {[%emt 0:04:38]} 10. Nxg5 {[%emt 0:01:30]} h6 {[%emt 0:02:00]} 11. Nh3 {[%emt 0:01:44]} Bf5 $146 {[%emt 0:04:13]} ({Predecessor:} 11... e5 12. e3 Bxh3 13. gxh3 {0-1 (54) Garcia Palermo,C (2444)-Godena,M (2533) Penne 2004}) 12. Bg3 {[%emt 0:06:56]} O-O-O {[%emt 0:00:28]} 13. e3 {[%emt 0:07:22]} h5 {[%emt 0:04:11]} 14. Ng1 {[%emt 0:02:57]} h4 {[%emt 0:05:31]} 15. Bf4 {[%emt 0:01:45]} f6 {[%emt 0:02:12]} 16. h3 {[%emt 0:02:28]} e5 {[%emt 0:00:22]} 17. Bh2 {[%emt 0:06:16]} exd4 {[%emt 0:01:01]} 18. exd4 {[%emt 0:01:15]} Be6 {[%emt 0:07:51]} 19. Bb5 {[%emt 0:00:57]} a6 {[%emt 0:03:09]} 20. Bxc6 {[%emt 0:01:04]} bxc6 {[%emt 0:00:05]} 21. Ne2 {[%emt 0:01:34]} c5 {[%emt 0:00:50]} 22. Bf4 {[%emt 0:07:21]} Bc4 {[%emt 0:04:01]} 23. Be3 {[%emt 0:00:41]} cxd4 {[%emt 0:02:02]} 24. Nxd4 {[%emt 0:03:57]} Kb7 {[%emt 0:00:31]} 25. b4 {[%emt 0:03:16]} Kc8 {[%emt 0:10:51]} 26. Nb3 {[%emt 0:06:01]} Rd3 {[%emt 0:00:14]} 27. Rc1 {[%emt 0:01:37]} Bd6 {[%emt 0:00:42]} 28. O-O {[%emt 0:07:10] [#]} f5 {[%emt 0:00:55]} (28... Bxb3 $1 $17 29. axb3 Be5) 29. Rfd1 {[%emt 0:01:07]} f4 {[%emt 0:00:47]} 30. Bd4 {[%emt 0:08:13]} Rg8 {[%emt 0:00:32]} 31. Rxd3 {[%emt 0:02:17]} Bxd3 {[%emt 0:00:30]} 32. Nc5 {[%emt 0:00:46]} Bxc5 {[%emt 0:00:13]} 33. Bxc5 {[%emt 0:02:01]} Kd7 {[%emt 0:00:04]} 34. Rd1 {[%emt 0:01:16]} Ke6 {[%emt 0:00:10]} 35. f3 {[%emt 0:04:41]} g5 {[%emt 0:00:10]} 36. fxe4 {[%emt 0:00:06]} Bxe4 {[%emt 0:00:07]} 37. Kf2 {[%emt 0:00:40]} g4 {[%emt 0:00:18]} 38. hxg4 {[%emt 0:00:02]} Rxg4 {[%emt 0:00:08]} 39. Rg1 {[%emt 0:00:06]} Ke5 {[%emt 0:00:55]} 40. a4 {[%emt 0:01:16]} Bc6 {[%emt 0:00:37]} 41. a5 {[%emt 0:00:41]} Be4 {[%emt 0:00:35]} 42. Bd4+ {[%emt 0:00:32]} Kf5 {[%emt 0:01:13]} 43. Bc5 {[%emt 0:00:22]} Rg3 {[%emt 0:00:37]} 44. Bd4 {[%emt 0:00:07]} c6 {[%emt 0:00:47]} 45. Bh8 {[%emt 0:00:15]} Rg8 {[%emt 0:00:46]} 46. Bd4 $11 {[%emt 0:00:16]} Ke6 {[%emt 0:00:11]} 47. Bc5 {[%emt 0:00:23]} Rg3 {[%emt 0:00:58]} 48. Bd4 {[%emt 0:00:23]} Rg8 {[%emt 0:00:59]} (48... Bd5 $17) 49. Bc5 {[%emt 0:00:02]} Ke5 {[%emt 0:00:28]} 50. Bb6 {[%emt 0:00:28]} Kf5 {[%emt 0:00:24]} (50... Rg4 $17) 51. Bc5 $2 {[%emt 0:00:10]} Rg3 {[%emt 0:00:30]} 52. Bd4 $19 {[%emt 0:00:13]} Bd5 {[%emt 0:00:07]} 53. Bh8 {[%emt 0:00:24]} Rd3 {[%emt 0:00:22]} 54. Re1 {[%emt 0:01:10]} Rd2+ {[%emt 0:00:15]} 55. Re2 {[%emt 0:00:01]} Rxe2+ {[%emt 0:00:09]} 56. Kxe2 {[%emt 0:00:01]} Bxg2 {[%emt 0:00:14]} 57. Kf2 {[%emt 0:00:03]} h3 {[%emt 0:00:26]} 58. Bd4 {[%emt 0:00:16]} Kg4 {[%emt 0:00:09]} 59. Bc5 {[%emt 0:02:50]} Bd5 {[%emt 0:00:46]} 60. Kg1 {[%emt 0:00:17]} Kf3 {[%emt 0:00:11]} 61. Kh2 {[%emt 0:00:49]} Be6 {[%emt 0:00:11]} 62. c4 {[%emt 0:02:18]} Ke2 {[%emt 0:00:27]} 63. b5 {[%emt 0:01:04]} cxb5 {[%emt 0:00:07]} 64. cxb5 {[%emt 0:00:05]} axb5 {[%emt 0:00:05]} 65. a6 {[%emt 0:00:01]} f3 {[%emt 0:00:15]} 0-1

[Event "Botvinnik Cup 2018"]
[Site "Moscow"]
[Date "2018.08.14"]
[Round "7"]
[White "Sevdimaliyev, Urfan"]
[Black "Igen, Amir"]
[Result "1-0"]
[ECO "D03"]
[WhiteElo "2388"]
[BlackElo "1778"]
[Annotator "NA"]
[PlyCount "142"]
[EventDate "2018.08.10"]
[EventCountry "RUS"]
[SourceTitle "playchess.com"]
[Source "ChessBase"]
[SourceQuality "1"]
[TimeControl "5400+30"]

1. d4 {[%emt 0:00:00]} d5 {[%emt 0:00:00]} 2. Nf3 {[%emt 0:00:00]} Nf6 {[%emt 0:00:00]} 3. Bg5 {[%emt 0:00:00]} e6 {[%emt 0:06:46]} 4. Nbd2 {[%emt 0:00:00]} Be7 {[%emt 0:00:10]} 5. e3 {[%emt 0:00:00]} O-O {[%emt 0:00:41]} 6. Bd3 {[%emt 0:00:00]} Nbd7 {[%emt 0:00:19]} 7. c3 {[%emt 0:00:28]} c5 {[%emt 0:00:32]} 8. Ne5 {[%emt 0:01:52]} Nxe5 {[%emt 0:05:04]} 9. dxe5 {[%emt 0:00:03]} Nd7 {[%emt 0:00:07]} 10. Bxe7 {[%emt 0:00:03]} Qxe7 {[%emt 0:00:11]} 11. f4 {[%emt 0:00:01]} f6 {[%emt 0:09:43]} 12. exf6 {[%emt 0:02:43]} Rxf6 {[%emt 0:00:42] D03: 1 d4 d5 2 Nf3 Nf6 3 Bg5, including Torre Attack with early ...d5} 13. Nf3 {[%emt 0:02:17]} e5 {[%emt 0:04:29]} 14. Bb5 $146 {[%emt 0:05:04]} ({Predecessor:} 14. Bc2 d4 15. O-O e4 16. Ng5 d3 17. Bb3+ Kh8 18. Bd5 h6 19. Qh5 Nb6 20. Nf7+ {1-0 (40) Palchun,G (2321)-Lazarev,V (2145) Kolomna 2014}) 14... exf4 {[%emt 0:05:03]} 15. Qxd5+ {[%emt 0:00:25]} Kh8 {[%emt 0:00:47]} 16. O-O-O {[%emt 0:01:17]} Nf8 {[%emt 0:18:41]} 17. exf4 {[%emt 0:15:11]} Be6 {[%emt 0:05:25]} 18. Qd6 {[%emt 0:05:09]} Qxd6 {[%emt 0:04:20]} 19. Rxd6 {[%emt 0:00:02]} Bxa2 {[%emt 0:07:15]} 20. Rxf6 {[%emt 0:02:27]} gxf6 {[%emt 0:00:07]} 21. Rd1 {[%emt 0:01:21]} a6 {[%emt 0:02:34]} 22. Ba4 {[%emt 0:00:57]} b5 {[%emt 0:05:35]} 23. Bc2 {[%emt 0:02:30]} Ne6 {[%emt 0:20:57]} 24. g3 {[%emt 0:05:31]} a5 {[%emt 0:01:05]} 25. Rd7 {[%emt 0:01:39]} Nf8 {[%emt 0:00:34]} 26. Rc7 {[%emt 0:00:59]} Bd5 {[%emt 0:00:13]} 27. Nh4 {[%emt 0:04:58]} Bg8 {[%emt 0:01:37]} 28. Rxc5 {[%emt 0:02:14]} b4 {[%emt 0:00:09]} 29. cxb4 {[%emt 0:04:08]} axb4 {[%emt 0:00:05]} 30. b3 {[%emt 0:12:35]} Ra1+ {[%emt 0:00:19]} 31. Kb2 {[%emt 0:00:04]} Rh1 {[%emt 0:00:07]} 32. Rc8 {[%emt 0:00:12]} Ne6 {[%emt 0:00:22]} 33. Nf5 {[%emt 0:14:04]} Re1 $2 {[%emt 0:01:15]} (33... Rxh2 34. Ne7 Kg7 35. Nxg8 Kf7) 34. Nh6 {[%emt 0:01:08]} Kg7 {[%emt 0:00:35]} 35. Nxg8 {[%emt 0:02:22]} Nd4 {[%emt 0:00:09]} 36. Bd3 {[%emt 0:01:30]} Rh1 {[%emt 0:00:48]} 37. Bc4 {[%emt 0:00:58]} Rxh2+ {[%emt 0:00:14]} 38. Kc1 {[%emt 0:00:50]} Rh1+ {[%emt 0:01:10]} 39. Kd2 {[%emt 0:06:53]} Rh2+ {[%emt 0:00:08]} 40. Kd3 {[%emt 0:00:06]} Nf5 {[%emt 0:00:05]} 41. Rc7+ {[%emt 0:01:22]} Kg6 {[%emt 0:00:07]} 42. Bf7+ {[%emt 0:00:37]} Kg7 {[%emt 0:00:07]} 43. Be6+ {[%emt 0:00:25]} Kg6 {[%emt 0:00:05]} 44. Bxf5+ {[%emt 0:00:09]} Kxf5 {[%emt 0:00:05]} 45. Rc6 {[%emt 0:00:06]} Rh3 {[%emt 0:00:41]} 46. Rxf6+ {[%emt 0:00:20]} Kg4 {[%emt 0:00:09]} 47. Rh6 {[%emt 0:00:49]} Rxg3+ {[%emt 0:00:07]} 48. Kc4 {[%emt 0:00:23]} Kxf4 {[%emt 0:00:12]} 49. Nf6 {[%emt 0:00:30]} Kf5 {[%emt 0:00:37]} 50. Nd5 {[%emt 0:00:41]} Rg4+ {[%emt 0:00:07]} 51. Kb5 {[%emt 0:00:05]} Rg5 {[%emt 0:00:42]} 52. Nxb4 {[%emt 0:00:11]} Ke4+ {[%emt 0:00:22]} 53. Kc4 {[%emt 0:00:10]} Rg7 {[%emt 0:00:14]} 54. Nd3 {[%emt 0:00:11]} Rc7+ {[%emt 0:00:04]} 55. Nc5+ {[%emt 0:00:01]} Ke5 {[%emt 0:00:10]} 56. b4 {[%emt 0:00:11]} Rg7 {[%emt 0:01:43]} 57. Rh5+ {[%emt 0:00:14]} Kd6 {[%emt 0:00:08]} 58. Rh6+ $2 {[%emt 0:00:21]} (58. Rd5+ {mates} Kc6 59. b5+ Kb6 60. Rd6+ Kc7 61. Re6 Rg4+ 62. Kc3 Rg3+ 63. Kb4 Rg4+ 64. Ka5) 58... Ke5 {[%emt 0:00:21]} 59. Re6+ {[%emt 0:00:09]} Kf5 {[%emt 0:00:14]} 60. b5 {[%emt 0:00:28]} h5 {[%emt 0:00:57]} 61. b6 {[%emt 0:00:08]} h4 {[%emt 0:00:17]} 62. Rh6 {[%emt 0:00:09]} Kg4 {[%emt 0:00:04]} 63. b7 {[%emt 0:00:26]} Rg8 {[%emt 0:00:05]} 64. Rg6+ {[%emt 0:00:30]} Rxg6 {[%emt 0:00:07]} 65. b8=Q {[%emt 0:00:40]} h3 {[%emt 0:01:35]} 66. Qh2 {[%emt 0:02:55]} Kh4 {[%emt 0:00:12]} 67. Ne4 {[%emt 0:00:31]} Rg2 {[%emt 0:01:13]} 68. Qf4+ {[%emt 0:00:07]} Kh5 {[%emt 0:00:14]} 69. Ng3+ {[%emt 0:02:24]} Kg6 {[%emt 0:01:04]} 70. Qg4+ {[%emt 0:00:11]} Kf6 {[%emt 0:00:25]} 71. Qxh3 {[%emt 0:00:05]} Ke5 {Kd5+ Kxd5} 1-0

[Event "Botvinnik Cup 2018"]
[Site "Moscow"]
[Date "2018.08.14"]
[Round "7"]
[White "Komliakov, Viktor"]
[Black "Tsvetkov, Andrey"]
[Result "0-1"]
[ECO "B55"]
[WhiteElo "2366"]
[BlackElo "2297"]
[Annotator "NA"]
[PlyCount "84"]
[EventDate "2018.08.10"]
[EventCountry "RUS"]
[SourceTitle "playchess.com"]
[Source "ChessBase"]
[SourceQuality "1"]
[TimeControl "5400+30"]

1. e4 {[%emt 0:00:00]} c5 {[%emt 0:00:00]} 2. Nf3 {[%emt 0:00:00]} d6 {[%emt 0:00:00]} 3. d4 {[%emt 0:00:00]} cxd4 {[%emt 0:00:00]} 4. Nxd4 {[%emt 0:00:00]} Nf6 {[%emt 0:00:00]} 5. f3 {[%emt 0:00:07]} e5 {[%emt 0:01:14]} 6. Bb5+ {[%emt 0:00:06]} Nbd7 {[%emt 0:00:36]} 7. Nf5 {[%emt 0:00:26]} d5 {[%emt 0:02:09]} 8. exd5 {[%emt 0:00:22]} a6 {[%emt 0:00:19]} 9. Ba4 {[%emt 0:00:30]} b5 {[%emt 0:06:00]} 10. Bb3 {[%emt 0:00:04]} Nb6 {[%emt 0:01:35]} 11. Ne3 {[%emt 0:00:07] B55: Sicilian: 2...d6 3 d4 cxd4 4 Nxd4 Nf6 5 f3} Bc5 {[%emt 0:00:35]} 12. Nc3 {[%emt 0:00:42]} Bb7 {[%emt 0:01:25]} (12... O-O 13. Qd3 a5 14. a3 a4 15. Ba2 b4 16. axb4 Bxb4 17. O-O Ba6 18. Nb5 Bc5 {0-1 (43) Rodriguez Vila,A (2532)-Shirov,A (2698) Buenos Aires 2012}) 13. Qd3 {[%emt 0:11:24] LiveBook: 26 Games} O-O {[%emt 0:11:04]} 14. Ne4 {[%emt 0:04:55]} Rc8 {[%emt 0:02:32]} 15. Nxc5 {[%emt 0:02:07]} Rxc5 {[%emt 0:00:01]} 16. O-O {[%emt 0:11:14] [#]} a5 $146 {[%emt 0:19:39]} ({Predecessor:} 16... Nbxd5) 17. a3 {[%emt 0:11:31]} a4 {[%emt 0:06:52]} 18. Ba2 {[%emt 0:00:37]} Nbxd5 {[%emt 0:01:19]} 19. Nxd5 {[%emt 0:01:26]} Bxd5 {[%emt 0:00:30]} 20. Be3 {[%emt 0:01:25]} Rc8 {[%emt 0:00:02]} 21. Qxb5 {[%emt 0:10:51]} Bxa2 {[%emt 0:00:03]} 22. Rxa2 {[%emt 0:00:02]} Qd5 {[%emt 0:00:09]} 23. Qxd5 {[%emt 0:02:18]} Nxd5 {[%emt 0:00:07]} 24. Bg5 {[%emt 0:03:49]} Rxc2 {[%emt 0:02:41]} 25. Rf2 {[%emt 0:00:58]} Rfc8 {[%emt 0:00:40]} 26. Ra1 {[%emt 0:00:10]} Rxf2 {[%emt 0:00:21]} 27. Kxf2 {[%emt 0:00:22]} Rc2+ {[%emt 0:00:02]} 28. Kg3 {[%emt 0:00:07]} Rxb2 {[%emt 0:01:25]} 29. Rd1 {[%emt 0:00:08]} Rb5 {[%emt 0:00:04]} 30. Rc1 {[%emt 0:06:51]} f6 {[%emt 0:03:27]} 31. Bd2 {[%emt 0:00:42]} Rb2 {[%emt 0:02:29]} 32. Rd1 {[%emt 0:01:23]} Rb3 {[%emt 0:01:45]} 33. Be1 {[%emt 0:01:29]} Ne3 {[%emt 0:01:49]} 34. Rd8+ {[%emt 0:03:09]} Kf7 {[%emt 0:00:02]} 35. Bb4 {[%emt 0:00:40]} Rb2 {[%emt 0:01:48]} 36. f4 {[%emt 0:00:37]} e4 {[%emt 0:05:32]} 37. f5 {[%emt 0:02:28]} Nxf5+ {[%emt 0:07:08]} 38. Kf4 {[%emt 0:00:16]} e3 {[%emt 0:02:18]} 39. Rf8+ $19 {[%emt 0:02:18]} Ke6 {[%emt 0:01:35]} 40. g4 {[%emt 0:00:07]} Rxb4+ {[%emt 0:00:13]} 41. axb4 {[%emt 0:00:15]} e2 {[%emt 0:00:03]} 42. gxf5+ {[%emt 0:00:11]} Ke7 {[%emt 0:00:07]} 0-1

[Event "Botvinnik Cup 2018"]
[Site "Moscow"]
[Date "2018.08.14"]
[Round "7"]
[White "Komliakov, Viktor"]
[Black "Garifullina, Leya"]
[Result "1/2-1/2"]
[ECO "C15"]
[WhiteElo "2366"]
[BlackElo "2106"]
[Annotator "NA"]
[PlyCount "49"]
[EventDate "2018.08.10"]
[EventCountry "RUS"]
[SourceTitle "playchess.com"]
[Source "ChessBase"]
[SourceQuality "1"]
[TimeControl "5400+30"]

1. e4 {[%emt 0:00:00]} e6 {[%emt 0:00:27]} 2. d4 {[%emt 0:00:00]} d5 {[%emt 0:01:24]} 3. Nc3 {[%emt 0:00:07]} Bb4 {[%emt 0:01:13]} 4. exd5 {[%emt 0:00:41]} exd5 {[%emt 0:01:10]} 5. Qf3 {[%emt 0:00:57]} Ne7 {[%emt 0:05:19]} 6. Bd3 {[%emt 0:01:25]} Nbc6 {[%emt 0:01:30]} 7. Nge2 {[%emt 0:01:05]} Be6 $11 {[%emt 0:04:43]} 8. a3 {[%emt 0:15:14]} Bxc3+ {[%emt 0:03:00]} 9. bxc3 {[%emt 0:00:21]} Qd7 {[%emt 0:03:21]} 10. O-O {[%emt 0:04:25]} Bf5 {[%emt 0:04:06]} 11. Bf4 {[%emt 0:02:23]} O-O-O {[%emt 0:05:27]} 12. a4 {[%emt 0:03:45]} h5 {[%emt 0:05:20]} 13. a5 {[%emt 0:01:08]} Bxd3 {[%emt 0:02:08]} 14. cxd3 {[%emt 0:00:47]} Qg4 {[%emt 0:03:49]} 15. Qxg4+ {[%emt 0:14:30]} hxg4 {[%emt 0:00:08]} 16. a6 {[%emt 0:02:01]} b6 {[%emt 0:02:57]} 17. f3 {[%emt 0:00:28]} gxf3 {[%emt 0:01:50]} 18. Rxf3 {[%emt 0:00:03]} f6 {[%emt 0:02:37]} 19. Bd2 {[%emt 0:05:19]} Kd7 {[%emt 0:01:39]} 20. Re1 {[%emt 0:04:28]} Rde8 {[%emt 0:03:47]} 21. Nf4 {[%emt 0:03:55]} Rh7 {[%emt 0:10:13]} 22. h3 {[%emt 0:03:03]} g5 {[%emt 0:03:22]} 23. Ne2 {[%emt 0:00:14]} Ng8 {[%emt 0:00:58]} 24. Kf2 {[%emt 0:00:41]} Rh4 {[%emt 0:02:40]} 25. Ra1 {[%emt 0:01:21]} 1/2-1/2

[Event "Botvinnik Cup 2018"]
[Site "Moscow"]
[Date "2018.08.14"]
[Round "7"]
[White "Egin, Vladimir"]
[Black "Kuliyev, Emin"]
[Result "1/2-1/2"]
[ECO "B13"]
[WhiteElo "2317"]
[BlackElo "1641"]
[Annotator "NA"]
[PlyCount "72"]
[EventDate "2018.08.10"]
[EventCountry "RUS"]
[SourceTitle "playchess.com"]
[Source "ChessBase"]
[SourceQuality "1"]
[TimeControl "5400+30"]

1. e4 {[%emt 0:00:00]} c6 {[%emt 0:00:00]} 2. d4 {[%emt 0:00:00]} d5 {[%emt 0:00:00]} 3. exd5 {[%emt 0:00:00]} cxd5 {[%emt 0:00:00]} 4. c4 {[%emt 0:00:00]} Nf6 {[%emt 0:00:00]} 5. Nc3 {[%emt 0:00:00]} Nc6 {[%emt 0:00:00]} 6. Nf3 {[%emt 0:00:08]} Bg4 {[%emt 0:00:00]} 7. cxd5 {[%emt 0:00:09]} Nxd5 {[%emt 0:00:00]} 8. Qb3 {[%emt 0:00:04]} Bxf3 {[%emt 0:00:45]} 9. gxf3 {[%emt 0:00:09]} e6 {[%emt 0:00:27]} 10. Qxb7 {[%emt 0:00:53]} Nxd4 {[%emt 0:00:03]} 11. Bb5+ {[%emt 0:00:05]} Nxb5 {[%emt 0:00:04]} 12. Qc6+ {[%emt 0:00:02]} Ke7 {[%emt 0:00:12]} 13. Qxb5 {[%emt 0:00:11]} Qd7 {[%emt 0:00:37]} 14. Nxd5+ {[%emt 0:00:06]} Qxd5 {[%emt 0:01:08]} 15. Bg5+ {[%emt 0:00:14]} f6 {[%emt 0:00:24]} 16. Qxd5 {[%emt 0:00:03]} exd5 {[%emt 0:00:03]} 17. Be3 {[%emt 0:00:02]} Ke6 {[%emt 0:12:49]} 18. O-O-O {[%emt 0:00:04]} Bb4 {[%emt 0:01:58]} 19. a3 {[%emt 0:00:03] LiveBook: 75 Games} Ba5 {[%emt 0:00:12] B13: Caro-Kann (Abtausch-Variante 4.c4)} 20. b4 {[%emt 0:00:23]} Bb6 {[%emt 0:00:24]} 21. Rhe1 {[%emt 0:00:07] [#]} Kf7 $146 {[%emt 0:50:22]} 22. Rxd5 {[%emt 0:06:33]} Rac8+ {[%emt 0:06:29]} 23. Kb2 {[%emt 0:00:45]} Rhe8 {[%emt 0:01:05]} 24. Rd7+ {[%emt 0:07:41]} Kf8 {[%emt 0:01:58]} 25. Rdd1 {[%emt 0:03:27]} Rc4 {[%emt 0:08:24]} 26. Bxb6 {[%emt 0:05:10]} axb6 {[%emt 0:00:08]} 27. Rxe8+ {[%emt 0:02:48]} Kxe8 {[%emt 0:00:03]} 28. Kb3 {[%emt 0:08:57]} Rh4 {[%emt 0:04:12]} 29. a4 {[%emt 0:04:41]} Rxh2 {[%emt 0:01:40]} 30. a5 {[%emt 0:00:41]} bxa5 {[%emt 0:00:05]} 31. bxa5 {[%emt 0:00:01]} Rxf2 {[%emt 0:00:16]} 32. a6 {[%emt 0:00:44]} Rxf3+ {[%emt 0:00:19]} 33. Kb4 $18 {[%emt 0:08:44]} (33. Ka4 $142 Rf4+ 34. Ka5 Rf5+ 35. Kb6) 33... Rf2 {[%emt 0:00:41]} 34. Rd3 {[%emt 0:03:10]} Rc2 {[%emt 0:06:39]} 35. Rc3 {[%emt 0:00:13]} Ra2 {[%emt 0:00:49]} 36. Ra3 {[%emt 0:00:15]} Rb2+ {[%emt 0:00:18]} 1/2-1/2